bitfinex/quotes_ETHUSD_20250406
["timestamp","ask_amount","ask_price","bid_price","bid_amount"]
[1743972898611,0.60746524,1575.0,1574.3,6.35182]
[1743972898807,1.4842,1574.9,1574.3,6.35182]
[1743972899131,1.4842,1574.9,1574.1,6.3528]
[1743972899443,1.4842,1574.9,1574.0,10.96793]
[1743972899444,1.4842,1574.9,1574.2,6.35241]
[1743972899648,1.4842,1574.9,1574.2,6.35222]
[1743972899815,1.4842,1574.7,1573.9,6.35334]
[1743972900017,10.42,1574.6,1574.2,6.3523]
[1743972900238,10.42,1574.6,1574.0,6.41648994]
[1743972900439,10.42,1574.6,1573.8,6.35402]
[1743972900751,1.4842,1574.5,1574.2,6.35236]
[1743972901051,10.42,1574.6,1574.5,6.35122]
[1743972901406,10.42,1574.6,1574.3,6.35187]
[1743972901625,10.42,1574.6,1574.1,3.0]
[1743972901948,10.42,1574.6,1573.5,1.6663]
[1743972902242,10.42,1574.6,1574.5,6.35122]
[1743972902426,10.42,1574.6,1574.3,6.35195]
[1743972902634,10.42,1574.6,1574.2,6.35238]
[1743972902925,10.42,1574.6,1574.2,6.35229]
[1743972903248,10.42,1574.6,1574.4,6.35144]
[1743972903450,1.4842,1574.8,1574.6,6.35052]
[1743972903609,6.15181868,1575.0,1574.9,6.3496]
[1743972903811,6.15181868,1575.0,1574.9,7.619543]
[1743972904117,6.15181868,1575.0,1574.8,6.34979]
[1743972904320,6.15181868,1575.0,1574.8,6.34974]
[1743972904516,6.15181868,1575.0,1574.9,6.3496]
[1743972904745,6.15181868,1575.0,1574.9,7.9479]
[1743972904909,6.15181868,1575.0,1574.9,10.9479]
[1743972905112,6.15181868,1575.0,1574.9,12.677664]
[1743972905319,3.73259549,1575.5,1575.4,9.34759]
[1743972905749,5.49e-06,1575.5,1575.4,10.94589]
[1743972906052,11.8982,1577.0,1576.6,6.34254]
[1743972906255,12.22607013,1577.0,1576.4,3.0]
[1743972906470,10.414,1577.0,1576.9,6.34155]
[1743972906624,18.34096122,1577.6,1576.5,6.34315]
[1743972906625,1.4842,1577.3,1576.5,6.34315]
[1743972906965,1.4842,1577.3,1576.9,6.3415]
[1743972907267,1.4842,1577.3,1576.8,12.68346]
[1743972907424,19.82516122,1577.6,1576.7,6.34236]
[1743972907631,30.23816122,1577.6,1577.1,6.34066]
[1743972907954,30.23816122,1577.6,1576.8,10.93995]
[1743972907955,30.18816122,1577.6,1576.9,6.34139]
[1743972908263,30.18816122,1577.6,1576.8,3.0]
[1743972908473,18.29096122,1577.6,1577.4,6.33921]
[1743972908759,18.29096122,1577.6,1577.4,6.33934]
[1743972908987,18.29096122,1577.6,1577.3,6.33986]
[1743972909163,2.49e-06,1577.6,1577.5,6.33914]
[1743972909338,2.49e-06,1577.6,1577.3,6.33973]
[1743972909539,2.49e-06,1577.6,1577.0,7.93944]
[1743972909734,2.49e-06,1577.6,1577.3,6.33964]
[1743972909974,11.8902,1578.0,1577.0,4.5983]
[1743972910178,11.8902,1578.0,1577.0,10.93939]
[1743972910374,11.8902,1578.0,1577.5,6.33911]
[1743972910540,11.8902,1578.0,1577.3,6.33959]
[1743972910741,11.8902,1578.0,1577.1,3.0]
[1743972910939,1.4842,1578.4,1577.5,6.33914]
[1743972911170,10.405,1578.3,1577.8,6.33775]
[1743972911544,10.405,1578.3,1577.6,6.3387]
[1743972911744,0.64497821,1579.0,1577.9,6.33748]
[1743972911745,6.39178774,1579.0,1577.9,6.33748]
[1743972911944,10.405,1578.9,1578.2,6.33615]
[1743972912173,10.405,1578.9,1578.1,12.67311]
[1743972912174,11.04417877,1578.9,1578.1,12.67311]
[1743972912374,11.04417877,1578.9,1578.3,6.33585]
[1743972912540,11.04417877,1578.9,1578.2,6.33632]
[1743972912541,11.04417877,1578.9,1578.2,6.33631]
[1743972912741,0.63917877,1578.9,1578.3,6.33565]
[1743972912937,10.4,1578.8,1578.1,6.33651]
[1743972913154,1.4842,1578.8,1577.7,1.5983]
[1743972913446,10.4,1578.7,1577.9,6.33718]
[1743972913645,1.4842,1578.6,1577.6,6.33834]
[1743972913983,10.399,1578.5,1577.7,6.40155695]
[1743972914189,10.399,1578.5,1578.0,6.3371]
[1743972914480,11.8832,1578.6,1578.2,6.33629]
[1743972914646,11.8832,1578.6,1578.2,6.33604]
[1743972914843,1.4842,1579.3,1578.3,3.0]
[1743972915043,1.4842,1579.3,1578.4,0.55]
[1743972915247,1.4842,1579.6,1578.6,6.33436]
[1743972915457,1.4842,1579.6,1578.8,6.33392]
[1743972916088,1.4842,1579.6,1578.6,9.33469]
[1743972916463,1.4842,1579.6,1578.7,6.33397]
[1743972917089,1.4842,1579.6,1578.4,1.502]
[1743972917302,10.388,1579.5,1578.8,6.33387]
[1743972917681,10.388,1579.5,1578.9,6.3333]
[1743972918002,10.388,1579.5,1578.6,3.0]
[1743972918203,10.388,1579.5,1578.8,6.33386]
[1743972918371,10.388,1579.5,1578.7,6.33399]
[1743972918703,10.388,1579.5,1578.9,6.33321]
[1743972918907,1.4842,1579.6,1578.6,3.0]
[1743972919061,1.4842,1579.6,1578.9,6.33314]
[1743972919262,0.55,1579.3,1578.1,1.583]
[1743972919475,0.55,1579.3,1577.9,0.46407688]
[1743972919476,1.4842,1579.0,1577.9,0.46407688]
[1743972919702,1.4842,1579.0,1578.2,6.33614]
[1743972919886,1.4842,1579.0,1578.2,6.33613]
[1743972920203,1.4842,1579.0,1578.3,0.06334206]
[1743972920368,1.4842,1579.0,1578.2,6.33608]
[1743972920571,1.4842,1579.0,1578.0,6.33709]
[1743972920765,0.55,1578.7,1577.7,6.33811]
[1743972920991,0.55,1578.7,1577.4,7.875]
[1743972920992,11.8692,1578.6,1577.6,6.33863]
[1743972921202,11.8692,1578.6,1578.0,6.33687]
[1743972921411,11.8692,1578.6,1577.9,6.33753]
[1743972921592,1.4842,1579.2,1577.9,6.07465235]
[1743972921795,11.8662,1579.2,1578.2,6.33593]
[1743972921965,2.0342,1579.1,1577.9,0.60746524]
[1743972922276,1.4842,1579.0,1578.2,6.33596]
[1743972922476,1.4842,1579.0,1578.0,3.0]
[1743972922477,1.4842,1579.0,1577.9,3.0]
[1743972922676,1.4842,1579.0,1578.0,6.33693]
[1743972922866,1.4842,1579.0,1578.0,6.3371]
[1743972923071,10.932,1579.2,1578.1,0.06335769]
[1743972923072,1.4842,1578.8,1578.1,0.06335769]
[1743972923302,1.4842,1578.8,1578.0,6.33695]
[1743972923487,1.4842,1578.8,1577.9,6.33753]
[1743972923814,1.4842,1578.8,1577.3,0.55]
[1743972923815,1.4842,1578.6,1577.5,12.678]
[1743972924014,11.8632,1578.5,1577.7,6.33795]
[1743972924303,11.8632,1578.5,1577.8,0.06336526]
[1743972924512,11.8632,1578.5,1577.5,12.6781]
[1743972924713,10.379,1578.5,1577.2,6.53872866]
[1743972924910,1.4842,1578.4,1577.4,0.06337515]
[1743972925114,1.4842,1578.4,1577.6,6.33871]
[1743972925316,1.4842,1578.4,1577.4,6.33922]
[1743972925479,1.4842,1578.4,1577.5,6.40232807]
[1743972925681,1.4842,1578.4,1577.5,6.40249807]
[1743972925903,1.4842,1578.4,1577.5,6.40228807]
[1743972926215,1.4842,1578.4,1577.5,6.40241807]
[1743972926420,1.4842,1578.4,1577.6,1.5355]
[1743972926720,1.4842,1579.0,1578.5,6.33498]
[1743972927017,1.4842,1579.0,1578.6,0.06333388]
[1743972927218,10.377,1579.2,1578.8,6.33371]
[1743972927528,10.377,1579.2,1578.7,6.33425]
[1743972927529,1.4842,1579.1,1578.4,3.0]
[1743972927729,1.4842,1579.1,1578.1,9.33667]
[1743972927879,1.4842,1578.9,1578.1,15.67309]
[1743972928084,10.376,1578.8,1578.2,6.33603]
[1743972928403,10.376,1578.8,1578.3,0.06335184]
[1743972928794,10.376,1578.8,1578.0,3.0]
[1743972928795,10.376,1578.8,1578.0,9.337]
[1743972929019,10.376,1578.8,1578.1,6.33672]
[1743972929242,10.376,1578.8,1578.2,6.33613]
[1743972929400,1.4842,1578.9,1578.4,6.33539]
[1743972929603,11.8592,1578.9,1578.3,6.33588]
[1743972929802,11.8592,1578.9,1578.1,6.33673]
[1743972930108,11.8592,1578.9,1578.1,12.67324]
[1743972930326,11.8592,1578.9,1578.0,6.33695]
[1743972930838,11.8592,1578.9,1578.1,6.40005112]
[1743972931009,11.8592,1578.9,1578.1,6.3367]
[1743972931406,0.6,1578.8,1578.1,6.3367]
[1743972931603,1.4842,1578.7,1577.9,6.33752]
[1743972931915,1.4842,1578.5,1577.4,6.3395]
[1743972932115,1.4842,1578.5,1577.0,1.6265]
[1743972932116,0.55,1578.2,1577.0,1.6265]
[1743972932323,3.0,1578.5,1577.0,1.6265]
[1743972932324,11.8562,1578.1,1577.4,6.33929]
[1743972932517,11.8562,1578.1,1577.1,6.34075]
[1743972932518,11.8562,1578.1,1577.3,6.33994]
[1743972932807,11.8562,1578.1,1577.4,6.4027192]
[1743972933008,11.8562,1578.1,1577.6,6.33865]
[1743972933316,0.6,1578.8,1577.7,6.33834]
[1743972933317,1.4842,1578.4,1577.7,6.33834]
[1743972933518,1.4842,1578.4,1578.2,6.33612]
[1743972933737,10.37,1578.5,1577.7,9.33799]
[1743972933916,10.37,1578.5,1578.2,6.33601]
[1743972934129,1.4842,1578.7,1578.3,6.33577]
[1743972934332,1.4842,1578.7,1578.2,6.33612]
[1743972934536,1.4842,1578.7,1578.0,6.33699]
[1743972934846,1.4842,1578.7,1578.1,6.33669]
[1743972935045,1.4842,1578.7,1577.8,6.33776]
[1743972935246,1.4842,1578.7,1578.0,6.33697]
[1743972935470,1.4842,1578.7,1578.1,6.3366]
[1743972935741,1.4842,1578.7,1578.2,6.3361]
[1743972935951,1.4842,1578.7,1578.1,6.33666]
[1743972936121,1.4842,1578.7,1578.1,6.3366]
[1743972936317,1.4842,1578.7,1578.2,6.33628]
[1743972936516,10.367,1578.6,1578.0,6.33702]
[1743972936705,10.367,1578.6,1578.2,6.33628]
[1743972936906,10.367,1578.6,1578.2,12.67245]
[1743972937111,10.367,1578.6,1578.3,12.67156]
[1743972937310,10.367,1578.6,1578.4,6.33544]
[1743972937506,10.367,1578.6,1578.2,6.33626]
[1743972937746,1.4842,1578.7,1578.3,6.33564]
[1743972938039,0.6,1578.8,1578.5,6.33508]
[1743972938244,0.6,1578.8,1578.7,6.33432]
[1743972938461,0.6,1578.8,1578.7,9.33432]
[1743972938621,1.4842,1579.4,1579.2,12.66433]
[1743972938944,39.5292,1579.7,1579.2,6.3321]
[1743972939247,39.5292,1579.7,1579.1,6.33257]
[1743972939449,39.5292,1579.7,1578.8,3.0]
[1743972939750,39.5292,1579.7,1579.0,6.3331]
[1743972939948,39.5292,1579.7,1578.8,9.33374]
[1743972940249,1.4842,1579.7,1579.3,6.33166]
[1743972940617,1.4842,1579.7,1579.2,6.33231]
[1743972940618,1.4842,1579.7,1579.2,6.33218]
[1743972940817,1.4842,1579.7,1578.8,3.0]
[1743972941143,1.4842,1579.7,1579.2,6.33229]
[1743972941344,1.4842,1579.7,1579.3,12.72682866]
[1743972941562,1.4842,1579.7,1579.3,6.33176]
[1743972941767,1.4842,1579.7,1579.0,6.33308]
[1743972942117,1.4842,1579.7,1578.9,6.33338]
[1743972942314,1.4842,1579.7,1579.1,6.33267]
[1743972942514,1.4842,1579.7,1578.9,6.966638]
[1743972942724,1.4842,1579.7,1578.8,12.66759]
[1743972943044,1.4842,1579.4,1578.2,7.603596]
[1743972943250,1.4842,1579.2,1578.4,6.33514]
[1743972943409,1.4842,1579.2,1578.5,0.06333945]
[1743972943614,1.4842,1579.2,1578.5,0.06333955]
[1743972943843,1.4842,1579.2,1578.1,6.33659]
[1743972944046,0.55,1578.9,1577.7,1.5162]
[1743972944252,1.4842,1578.8,1578.1,6.33668]
[1743972944451,10.358,1578.7,1578.2,6.33633]
[1743972944752,10.358,1578.7,1577.9,6.33724]
[1743972944934,1.4842,1578.6,1577.9,6.33736]
[1743972945332,1.4842,1578.6,1578.0,0.06336324]
[1743972945517,1.4842,1578.6,1577.9,6.33753]
[1743972945714,1.4842,1578.6,1578.3,6.33587]
[1743972945930,1.4842,1578.6,1578.3,6.33575]
[1743972946129,1.4842,1578.6,1578.4,6.39884657]
[1743972946454,1.4842,1578.9,1578.6,6.3345]
[1743972946662,1.4842,1578.9,1578.4,7.60891966]
[1743972946825,1.4842,1578.9,1578.2,3.0]
[1743972947025,1.4842,1578.9,1578.5,6.33494]
[1743972947224,1.4842,1578.9,1578.7,6.33408]
[1743972947531,10.356,1579.0,1578.5,6.33506]
[1743972947858,10.356,1579.0,1578.4,6.33532]
[1743972948156,10.356,1579.0,1578.7,6.33419]
[1743972948325,10.356,1579.0,1578.6,6.33472]
[1743972948521,1.4842,1579.2,1579.0,6.333]
[1743972948722,1.4842,1579.2,1579.1,6.33272]
[1743972949054,10.354,1579.4,1578.8,6.33375]
[1743972949055,11.8382,1579.4,1578.8,6.33375]
[1743972949260,11.8338883,1579.4,1578.5,6.968322]
[1743972949559,1.4842,1579.3,1578.3,0.980893]
[1743972949859,1.4842,1579.3,1578.2,1.5162]
[1743972949860,1.4842,1579.3,1578.2,7.8525]
[1743972950061,1.4842,1579.3,1578.5,6.3351]
[1743972950258,1.4842,1579.3,1578.3,3.0]
[1743972950445,1.4842,1579.3,1578.8,6.33354]
[1743972950645,1.45251,1579.3,1578.9,6.33337]
[1743972950845,1.45251,1579.3,1578.8,6.967224]
[1743972951048,1.45251,1579.3,1578.6,6.33438]
[1743972951247,1.45251,1579.3,1578.6,12.66897]
[1743972951559,1.45251,1579.3,1578.7,0.0633307]
[1743972951868,1.45251,1579.3,1578.5,6.33496]
[1743972952357,1.45251,1579.3,1578.5,6.33485]
[1743972952661,1.45251,1579.3,1578.6,6.33452]
[1743972952823,1.45251,1579.3,1578.7,6.33414]
[1743972953020,1.45251,1579.3,1578.6,6.33452]
[1743972953722,1.45251,1579.3,1578.5,7.60207]
[1743972953723,1.45251,1579.3,1578.2,6.3363]
[1743972953975,1.45251,1579.3,1577.6,13.92931235]
[1743972953976,1.4526,1579.0,1577.6,13.92931235]
[1743972954184,0.55,1578.9,1578.0,12.67399]
[1743972954382,11.8016,1578.8,1578.1,6.39991994]
[1743972954554,11.8016,1578.8,1578.2,6.33627]
[1743972954754,11.8016,1578.8,1578.2,12.73579154]
[1743972954957,11.8016,1578.8,1578.3,6.39926147]
[1743972955265,11.8016,1578.8,1578.7,6.33432]
[1743972955443,0.5,1579.0,1578.7,6.33432]
[1743972955444,0.5,1579.0,1578.8,6.33366]
[1743972955646,0.5,1579.0,1578.8,12.66746]
[1743972956058,0.5,1579.0,1578.9,6.39684878]
[1743972956265,0.5,1579.0,1578.9,6.33352]
[1743972958065,0.5,1579.0,1578.6,6.33449]
[1743972958452,0.5,1579.0,1578.7,6.33394]
[1743972958679,0.5,1579.0,1578.8,6.33376]
[1743972958955,0.5,1579.0,1578.7,12.66848]
[1743972959151,0.5,1579.0,1578.8,6.33391]
[1743972959367,0.5,1579.0,1578.9,6.33352]
[1743972959584,0.5,1579.0,1578.8,6.33379]
[1743972959969,0.5,1579.0,1578.8,12.66755]
[1743972960155,0.5,1579.0,1578.9,6.33352]
[1743972960486,0.5,1579.0,1578.9,9.39684118]
[1743972960658,0.5,1579.0,1578.9,11.53995412]
[1743972961258,0.5,1579.0,1578.9,6.33352]
[1743972961474,0.5,1579.0,1578.6,6.33448]
[1743972961672,0.5,1579.0,1578.9,6.33352]
[1743972962087,1.4526,1579.5,1579.4,6.33151]
[1743972962292,1.4526,1579.9,1579.2,3.0]
[1743972962491,1.4526,1579.9,1579.2,6.33203]
[1743972962691,1.4526,1579.9,1579.1,6.3327]
[1743972962898,1.4526,1579.9,1579.1,6.33243]
[1743972963097,1.4526,1579.9,1579.3,6.33159]
[1743972963306,1.4526,1579.9,1579.6,6.33066]
[1743972963686,1.4526,1579.9,1579.4,6.33122]
[1743972963884,1.4526,1579.9,1579.7,6.33014]
[1743972964081,1.4526,1579.9,1579.5,0.633122]
[1743972964082,1.4526,1579.9,1578.9,6.33328]
[1743972964306,1.4526,1579.9,1579.7,6.33025]
[1743972964775,1.4526,1579.9,1579.5,6.33089]
[1743972964970,1.4526,1579.9,1579.5,12.66185]
[1743972965226,1.4526,1579.9,1579.5,6.33089]
[1743972965388,1.4526,1579.9,1579.3,6.33183]
[1743972965591,1.4526,1579.9,1579.4,6.33148]
[1743972965883,1.4526,1579.9,1579.5,6.33073]
[1743972966095,10.334,1580.1,1579.5,6.33073]
[1743972966295,10.334,1580.1,1579.6,6.33071]
[1743972966546,1.4526,1580.2,1579.9,6.32926]
[1743972966871,1.4526,1580.2,1580.0,6.32887]
[1743972967014,48.368,1580.3,1580.0,6.32887]
[1743972967015,10.333,1580.3,1580.1,6.32871]
[1743972967219,10.333,1580.3,1579.5,6.33111]
[1743972967220,10.333,1580.3,1579.6,3.0]
[1743972967414,10.333,1580.3,1580.0,6.32909]
[1743972967665,1.4526,1580.5,1580.0,12.65802]
[1743972967869,11.7846,1580.5,1580.0,12.65802]
[1743972968226,11.7846,1580.5,1580.0,6.32893]
[1743972968422,11.7846,1580.5,1579.8,6.32978]
[1743972968755,11.7846,1580.5,1579.9,6.32927]
[1743972969052,11.7846,1580.5,1580.0,6.32894]
[1743972969258,1.4526,1580.5,1580.0,6.32896]
[1743972969461,11.7806,1580.5,1579.8,6.32986]
[1743972969646,10.328,1580.5,1579.5,6.33099]
[1743972969957,1.4526,1580.4,1579.5,6.33106]
[1743972970147,1.4526,1580.4,1579.5,6.33096]
[1743972970320,1.4526,1580.4,1579.8,6.32974]
[1743972970949,1.4526,1580.4,1579.8,12.72278865]
[1743972971148,1.4526,1580.4,1579.5,1.266247]
[1743972971350,1.4526,1580.4,1579.4,6.33146]
[1743972971520,1.4526,1579.9,1578.9,6.33338]
[1743972971723,1.4526,1579.9,1578.7,1.5176]
[1743972971724,1.4526,1579.7,1578.7,6.33403]
[1743972971918,1.4526,1579.7,1578.9,6.33322]
[1743972972354,1.4526,1579.7,1578.9,6.3335]
[1743972972558,1.4526,1579.7,1578.9,6.3967155]
[1743972972778,1.4526,1579.7,1578.7,6.80109521]
[1743972972981,1.4526,1579.7,1578.7,7.48120473]
[1743972973167,1.4526,1579.7,1578.8,6.33377]
[1743972973370,1.4526,1579.3,1578.4,6.33536]
[1743972973548,11.7756,1579.2,1578.4,6.33536]
[1743972973750,11.7756,1579.2,1578.4,12.67065]
[1743972973980,11.7756,1579.2,1578.5,6.33484]
[1743972974164,10.323,1579.2,1578.4,6.33549]
[1743972974360,1.4526,1579.1,1578.5,0.06334398]
[1743972974565,1.4526,1579.1,1578.6,6.33457]
[1743972974952,1.4526,1579.1,1578.6,6.39790877]
[1743972975380,1.4526,1579.1,1578.4,6.33539]
[1743972975576,1.4526,1578.9,1578.2,6.33618]
[1743972975753,1.4526,1578.9,1578.2,12.67235]
[1743972976091,1.4526,1578.9,1578.1,0.48638625]
[1743972976272,1.4526,1578.9,1578.2,6.33633]
[1743972976648,1.4526,1578.9,1578.3,6.33578]
[1743972976855,1.4526,1578.9,1578.2,6.33613]
[1743972977054,0.55,1578.6,1577.6,6.33845]
[1743972977286,0.55,1578.2,1577.4,6.33925]
[1743972977470,1.4526,1578.3,1577.6,12.67712]
[1743972977872,2.0026,1578.4,1577.4,6.973255]
[1743972978191,2.0026,1578.4,1576.9,1.6381]
[1743972978192,0.55,1578.0,1576.9,1.6381]
[1743972978391,0.55,1578.0,1576.8,0.31962673]
[1743972978392,1.4526,1577.8,1577.1,6.34061]
[1743972978691,1.4526,1577.8,1577.3,6.33967]
[1743972978854,1.4526,1577.8,1577.2,6.34029]
[1743972979056,1.4526,1577.8,1577.1,6.974751]
[1743972979260,1.4526,1577.8,1577.0,6.34115]
[1743972979495,1.4526,1577.8,1577.0,6.34098]
[1743972979998,1.4526,1577.8,1577.0,6.34097]
[1743972980306,0.55,1577.6,1576.8,6.34187]
[1743972980491,1.4526,1577.5,1576.7,6.34232]
[1743972980694,1.4526,1577.5,1576.8,0.06341252]
[1743972980911,1.4526,1577.5,1576.8,6.40500252]
[1743972981068,1.4526,1577.5,1577.1,6.34052]
[1743972981271,1.4526,1577.5,1577.1,3.0]
[1743972981536,10.322,1577.6,1577.4,6.33954]
[1743972981719,1.4526,1577.8,1577.6,6.33851]
[1743972981871,0.6,1577.9,1577.8,6.33793]
[1743972982072,1.4526,1578.1,1577.4,3.633954]
[1743972982289,1.4526,1578.1,1577.9,6.33734]
[1743972982504,1.4526,1578.1,1577.9,12.67465]
[1743972982811,1.4526,1578.1,1577.5,6.33902]
[1743972983015,1.4526,1578.1,1577.3,1.5836]
[1743972983173,1.4526,1578.1,1577.6,6.33854]
[1743972983375,1.4526,1578.1,1577.8,6.3377]
[1743972983573,1.4526,1578.1,1577.9,6.33735]
[1743972984116,1.4526,1578.1,1577.5,6.33877]
[1743972984315,1.4526,1578.1,1577.3,1.5836]
[1743972984500,1.4526,1578.1,1577.5,6.33875]
[1743972984817,1.4526,1578.1,1577.7,6.33809]
[1743972985116,1.4526,1578.1,1577.6,6.33874]
[1743972985327,1.4526,1578.1,1577.8,6.33769]
[1743972985712,1.4526,1578.1,1577.9,6.33728]
[1743972985911,1.4526,1578.1,1577.8,6.33789]
[1743972985912,1.4526,1578.1,1577.7,12.67634]
[1743972986099,1.4526,1578.1,1577.6,0.64021171]
[1743972986425,1.4526,1578.1,1577.5,12.67804]
[1743972986621,1.4526,1578.1,1577.7,6.33808]
[1743972987316,1.4526,1578.1,1577.7,0.06337666]
[1743972987883,1.4526,1578.1,1577.6,6.33869]
[1743972988133,1.4526,1578.1,1577.3,6.33976]
[1743972988283,1.4526,1578.1,1577.3,12.67952]
[1743972988489,1.4526,1578.1,1577.3,6.33976]
[1743972988831,1.4526,1578.1,1577.1,6.34064]
[1743972989003,1.4526,1578.1,1577.0,9.34115]
[1743972989004,1.4526,1578.0,1577.0,6.34097]
[1743972989393,1.4526,1578.0,1577.3,6.33973]
[1743972989723,1.4526,1578.0,1577.2,6.34034]
[1743972989927,1.4526,1578.0,1577.2,6.34021]
[1743972990224,1.4526,1578.0,1577.2,0.06339305]
[1743972990426,1.4526,1578.0,1577.1,6.34069]
[1743972990427,1.4526,1578.0,1577.0,6.34095]
[1743972990632,0.55,1577.9,1576.7,1.5836]
[1743972990824,9.4032898,1578.2,1576.6,0.00552486]
[1743972990825,6.62465235,1577.6,1576.6,0.00552486]
[1743972991024,1.4526,1577.3,1576.6,0.00552486]
[1743972991325,1.4526,1577.3,1576.6,6.34827486]
[1743972991488,1.4526,1577.3,1576.6,0.00552486]
[1743972992114,0.55,1577.2,1576.6,0.00552486]
[1743972992312,1.4526,1577.1,1576.6,0.00552486]
[1743972993604,0.55,1577.0,1576.6,0.00552486]
[1743972993816,1.4526,1576.7,1576.6,0.00552486]
[1743972994014,0.55,1576.6,1575.4,6.34741]
[1743972994226,39.27446524,1576.6,1575.5,0.0634628]
[1743972994429,39.74936698,1576.6,1575.4,6.34735]
[1743972994630,6.62465235,1576.4,1575.3,6.34784]
[1743972994829,6.07465235,1576.1,1575.1,12.69734]
[1743972995002,1.447,1575.9,1575.1,6.34878]
[1743972995203,1.447,1575.9,1575.0,6.34919]
[1743972995407,1.447,1575.9,1575.1,6.34854]
[1743972995802,1.447,1575.8,1575.0,6.34904]
[1743972996015,3.55,1576.0,1574.8,6.34978]
[1743972996016,1.447,1575.6,1574.8,6.34978]
[1743972996219,1.447,1575.6,1574.7,6.35036]
[1743972996418,1.447,1575.6,1574.6,6.35059]
[1743972996620,1.447,1575.6,1574.7,0.06349906]
[1743972996805,2.32257537,1575.6,1574.7,6.3504]
[1743972997018,1.447,1575.6,1575.1,6.34845]
[1743972997334,1.447,1575.6,1574.3,7.88173]
[1743972997498,1.92766361,1575.6,1574.9,6.34952]
[1743972997703,1.447,1575.6,1575.4,6.34737]
[1743972998032,1.447,1576.5,1575.5,2.164637]
[1743972998229,1.447,1576.5,1575.5,7.87672]
[1743972998419,1.447,1576.5,1575.5,4.5299]
[1743972998727,1.447,1576.5,1575.7,6.34637]
[1743972999139,1.447,1576.5,1575.7,6.34634]
[1743972999336,1.447,1576.5,1575.9,6.34524]
[1743972999504,1.447,1576.5,1576.1,6.34439]
[1743973000037,10.312,1576.8,1576.4,6.34356]
[1743973000038,11.759,1576.8,1576.4,6.34356]
[1743973000198,11.759,1576.8,1576.5,6.34309]
[1743973000395,11.759,1576.8,1576.0,4.6539]
[1743973000396,11.759,1576.8,1576.3,6.34387]
[1743973000595,11.759,1576.8,1575.6,8.00068]
[1743973000800,10.312,1576.7,1576.0,6.345]
[1743973001099,10.312,1576.7,1575.6,1.6539]
[1743973001304,1.447,1576.6,1576.0,6.34491]
[1743973001634,1.447,1576.6,1575.6,1.6539]
[1743973001851,1.447,1576.6,1576.0,6.34511]
[1743973001997,1.447,1576.6,1575.8,9.34582]
[1743973002201,1.447,1576.6,1576.3,6.34376]
[1743973002434,0.6,1576.5,1575.8,9.34566]
[1743973002634,10.91,1576.5,1576.2,6.34435]
[1743973002932,10.91,1576.5,1575.6,1.6539]
[1743973003106,10.91,1576.5,1575.7,6.34633]
[1743973003296,10.91,1576.5,1576.0,6.345]
[1743973003832,10.91,1576.5,1576.1,6.34472]
[1743973004062,10.91,1576.5,1575.9,6.34556]
[1743973004240,1.447,1576.4,1575.7,6.34613]
[1743973004409,1.447,1576.4,1575.7,6.40958658]
[1743973004601,1.447,1576.4,1575.6,6.34676]
[1743973004802,1.93165304,1576.4,1575.6,6.34676]
[1743973005014,1.447,1576.3,1575.4,6.34737]
[1743973005215,1.447,1576.3,1575.5,6.34698]
[1743973005534,1.447,1576.3,1575.9,6.34523]
[1743973005700,1.447,1576.3,1575.5,0.634698]
[1743973005701,1.447,1576.3,1575.8,6.34595]
[1743973006037,1.447,1576.3,1575.6,6.34673]
[1743973006223,1.447,1576.3,1576.2,6.34437]
[1743973006532,1.447,1576.3,1575.6,8.00066]
[1743973006740,1.447,1576.3,1576.1,6.34473]
[1743973006913,1.447,1576.3,1576.1,12.68936]
[1743973007103,1.447,1576.3,1576.1,6.34463]
[1743973007638,1.447,1576.3,1576.2,6.34437]
[1743973007825,48.997,1576.5,1576.1,6.34457]
[1743973008227,48.997,1576.5,1576.1,12.68914]
[1743973008444,48.997,1576.5,1576.3,6.3436]
[1743973008445,10.905,1576.5,1576.3,6.3436]
[1743973008800,10.905,1576.5,1575.9,6.3454]
[1743973009001,1.447,1576.4,1575.8,6.34567]
[1743973009232,1.447,1576.4,1575.9,6.34542]
[1743973009541,1.447,1576.4,1576.0,6.345]
[1743973009739,1.447,1576.4,1575.9,6.3455]
[1743973010045,1.447,1576.4,1576.0,6.34479]
[1743973010460,1.447,1576.4,1575.8,12.69179]
[1743973010665,1.447,1576.4,1575.9,6.3453]
[1743973010826,11.749,1576.4,1576.0,6.34493]
[1743973011233,11.749,1576.4,1575.9,6.3454]
[1743973011463,11.749,1576.4,1575.8,6.34585]
[1743973011660,11.749,1576.4,1575.9,6.34554]
[1743973012035,11.749,1576.4,1575.8,6.34585]
[1743973012234,11.749,1576.4,1575.7,6.34634]
[1743973012534,11.749,1576.4,1575.7,6.34637]
[1743973012726,1.447,1576.3,1575.4,6.34739]
[1743973012930,1.77586592,1576.3,1575.4,6.34739]
[1743973013264,1.77586592,1576.3,1575.3,12.69577]
[1743973013468,1.447,1576.1,1575.0,2.13461487]
[1743973013683,1.447,1576.1,1575.5,6.34711]
[1743973013967,1.447,1576.1,1575.9,6.34538]
[1743973014170,1.447,1576.4,1576.0,6.34517]
[1743973014357,1.447,1576.4,1576.2,6.34417]